fUSD/lending_fUSD_20251221
["ID","MTS","AMOUNT","RATE_DAILY","PERIOD"]
[399309376,1766278245311,-227.8,0.00013698,2]
[399309377,1766278245321,-500.0,0.00013698,2]
[399309378,1766278245330,-500.0,0.00013698,2]
[399309379,1766278245339,-511.85238157,0.00013698,2]
[399309380,1766278245349,-511.45159126,0.00013698,2]
[399309381,1766278245359,-500.0,0.00013698,2]
[399309382,1766278245368,-210.43,0.00013698,2]
[399309383,1766278245378,-166.66,0.00013699,2]
[399309384,1766278245387,-191.44340005,0.00013699,2]
[399309385,1766278245397,-500.0,0.00013699,2]
[399309386,1766278245406,-500.0,0.00013699,2]
[399309387,1766278245415,-500.0,0.00013699,2]
[399309388,1766278245425,-500.0,0.00013699,2]
[399309389,1766278245434,-540.24345851,0.00013699,2]
[399309390,1766278245443,-210.16565116,0.00013699,2]
[399309391,1766278245453,-500.0,0.00013699,2]
[399309392,1766278245464,-727.03,0.00013735,2]
[399309393,1766278245473,-1194.34,0.00013735,2]
[399309394,1766278245483,-63186.93,0.00013735,2]
[399309395,1766278245492,-200.0,0.00013746,2]
[399309396,1766278245501,-163.78,0.00013776,2]
[399309397,1766278245511,-4533.35,0.00013776,2]
[399309398,1766278245523,-500.0,0.00013873,2]
[399309399,1766278245533,-500.0,0.00013873,2]
[399309400,1766278245542,-500.0,0.00013873,2]
[399309401,1766278245552,-166.66,0.00013895,2]
[399309402,1766278245562,-999.0,0.00013905,3]
[399309403,1766278245571,-210.43,0.00013972,2]
[399309404,1766278245580,-1287.0,0.00014083,2]
[399309405,1766278245590,-166.66,0.00014092,2]
[399309406,1766278245599,-962.0,0.00014111,2]
[399309407,1766278245608,-598.95449494,0.0001417,2]
[399309408,1766278245617,-210.43,0.00014246,2]
[399309409,1766278245627,-166.66,0.00014289,2]
[399309410,1766278245638,-1000.0,0.00014348,2]
[399309411,1766278245647,-500.0,0.00014421,2]
[399309412,1766278245656,-166.66,0.00014485,2]
[399309413,1766278245666,-255.0,0.00014503,2]
[399309414,1766278245678,-210.43,0.0001452,2]
[399309415,1766278245687,-1608.0,0.00014562,2]
[399309416,1766278245697,-2791.006,0.00014562,2]
[399309417,1766278245708,-1326.0,0.00014562,2]
[399309418,1766278245717,-612.0,0.00014562,2]
[399309419,1766278245727,-518.0,0.00014562,2]
[399309420,1766278245736,-1262.0,0.00014562,2]
[399309421,1766278245746,-564.0,0.00014562,2]
[399309423,1766278245756,-2428.0,0.00014562,2]
[399309425,1766278245766,-1197.0,0.00014562,2]
[399309426,1766278245776,-300.0,0.00014622,2]
[399309427,1766278245786,-300.0,0.00014622,2]
[399309428,1766278245797,-300.0,0.00014622,2]
[399309429,1766278245808,-300.0,0.00014622,2]
[399309430,1766278245817,-1680.0,0.0001468,2]
[399309431,1766278245827,-420.0,0.0001468,2]
[399309432,1766278245838,-166.66,0.00014682,2]
[399309433,1766278245848,-1680.0,0.0001473,2]
[399309434,1766278245858,-300.0,0.0001473,2]
[399309435,1766278245868,-300.0,0.0001473,2]
[399309436,1766278245878,-300.0,0.0001473,2]
[399309437,1766278245889,-300.0,0.0001473,2]
[399309438,1766278245901,-300.0,0.0001473,2]
[399309439,1766278245911,-2500.0,0.0001473,2]
[399309440,1766278245922,-2500.0,0.0001473,2]
[399309441,1766278245932,-2500.0,0.0001473,2]
[399309442,1766278245941,-2500.0,0.0001473,2]
[399309443,1766278245950,-2500.0,0.0001473,2]
[399309444,1766278245960,-151.4761841,0.0001473,2]
[399309445,1766278245970,-5000.0,0.0001473,3]
[399309446,1766278245980,-1408.54659257,0.0001473,3]
[399309447,1766278245991,-195.0,0.0001473,2]
[399309448,1766278246002,-7044.88828449,0.00014741,2]
[399309449,1766278246014,-210.45,0.00014794,2]
[399309450,1766278246023,-7044.88828449,0.00014981,2]
[399309451,1766278246034,-551.75,0.00015068,2]
[399309452,1766278246044,-6323.560541,0.00015204,2]
[399309453,1766278246053,-7044.88828449,0.00015221,2]
[399309454,1766278246063,-150.0,0.00015288,2]
[399309455,1766278246072,-150.0,0.00015288,2]
[399309456,1766278246081,-500.0,0.00015315,2]
[399309457,1766278246090,-150.0,0.00015394,2]
[399309458,1766278246100,-150.0,0.00015429,2]
[399309459,1766278246109,-727.03,0.00015452,2]
[399309460,1766278246119,-7044.88828449,0.00015461,2]
[399309461,1766278246128,-150.0,0.000155,2]
[399309462,1766278246137,-150.0,0.00015571,2]
[399309463,1766278246147,-1410.9770762,0.00015586,2]
[399309464,1766278246157,-150.0,0.00015606,2]
[399309465,1766278246168,-7044.88828449,0.00015701,2]
[399309466,1766278246178,-433.0,0.00015708,2]
[399309467,1766278246190,-150.0,0.00015712,2]
[399309468,1766278246201,-150.0,0.00015712,2]
[399309470,1766278246210,-150.0,0.00015818,2]
[399309471,1766278246219,-150.0,0.00015854,2]
[399309472,1766278246229,-150.0,0.00015925,2]
[399309473,1766278246243,-7044.88828449,0.0001594,2]
[399309474,1766278246252,-1000.0,0.00015942,2]
[399309475,1766278246262,-150.0,0.00015995,2]
[399309477,1766278246271,-500.0,0.00015999,2]
[399309478,1766278246282,-500.0,0.00015999,2]
[399309479,1766278246292,-464231.83423,0.00016,2]
[399309480,1766278246301,-150.0,0.00016031,2]
[399309481,1766278246310,-974.0,0.00016092,2]
[399309482,1766278246319,-551.0,0.00016092,2]
[399309483,1766278246329,-866.0,0.00016095,2]
[399309484,1766278246338,-9999.99,0.00016116,2]
[399309485,1766278246349,-29512.56,0.00016116,2]
[399309486,1766278246359,-9999.99,0.00016116,2]
[399309487,1766278246368,-150.0,0.00016137,2]
[399309488,1766278246378,-150.0,0.00016137,2]
[399309489,1766278246388,-300.0,0.00016149,2]
[399309490,1766278246397,-1000.0,0.00016149,2]
[399309491,1766278246406,-1000.0,0.00016149,2]
[399309492,1766278246415,-1025.58359717,0.00016149,2]
[399309493,1766278246425,-695.39793187,0.00016149,2]
[399309494,1766278246434,-160.0,0.00016149,2]
[399309495,1766278246444,-541.13109174,0.00016149,2]
[399309496,1766278246455,-209.40437685,0.00016149,2]
[399309497,1766278246464,-151.0,0.00016149,2]
[399309498,1766278246474,-620.0,0.00016149,2]
[399309499,1766278246485,-2346.0,0.00016149,2]
[399309500,1766278246494,-1000.0,0.00016149,2]
[399309501,1766278246504,-151.0,0.00016149,2]
[399309502,1766278246513,-553.64373807,0.00016149,2]
[399309503,1766278246522,-1000.0,0.00016149,2]
[399309504,1766278246531,-1000.0,0.00016149,2]
[399309505,1766278246540,-1000.0,0.00016149,2]
[399309506,1766278246550,-151.0,0.00016149,2]
[399309507,1766278246562,-1228.0,0.00016149,2]
[399309508,1766278246572,-500.0,0.00016149,2]
[399309509,1766278246581,-500.0,0.00016149,2]
[399309510,1766278246590,-500.0,0.00016149,2]
[399309511,1766278246600,-500.0,0.00016149,2]
[399309512,1766278246610,-500.0,0.00016149,2]
[399309513,1766278246619,-500.0,0.00016149,2]
[399309514,1766278246629,-500.0,0.00016149,2]
[399309515,1766278246638,-500.0,0.00016149,2]
[399309516,1766278246647,-668.65185757,0.00016149,2]
[399309517,1766278246656,-579.4579192,0.00016149,2]
[399309518,1766278246666,-2000.0,0.00016149,2]
[399309519,1766278246936,-582.52208254,0.00016149,2]
[399309520,1766278246946,-307.7181838,0.00016149,2]
[399309521,1766278246955,-578.20924308,0.00016149,2]
[399309522,1766278246965,-7044.88828449,0.0001618,2]
[399309523,1766278246974,-2240.0,0.00016203,2]
[399309524,1766278246983,-200.0,0.00016224,2]
[399309525,1766278246992,-150.0,0.00016243,2]
[399309526,1766278247001,-150.0,0.00016279,2]
[399309527,1766278247013,-150.0,0.00016349,2]
[399309528,1766278247023,-150.0,0.0001642,2]
[399309529,1766278247032,-7044.88828449,0.0001642,2]
[399309530,1766278247043,-500.0,0.00016437,2]
[399309531,1766278247053,-500.0,0.00016438,2]
[399309532,1766278247066,-500.0,0.00016438,2]
[399309533,1766278247075,-500.0,0.00016438,2]
[399309534,1766278247085,-500.0,0.00016438,2]
[399309535,1766278247095,-500.0,0.00016438,2]
[399309536,1766278247105,-500.0,0.00016438,2]
[399309537,1766278247115,-500.0,0.00016438,2]
[399309538,1766278247124,-500.0,0.00016438,2]
[399309539,1766278247133,-500.0,0.00016438,2]
[399309540,1766278247143,-500.0,0.00016438,2]
[399309541,1766278247153,-500.0,0.00016438,2]
[399309543,1766278247163,-500.0,0.00016438,2]
[399309545,1766278247173,-500.0,0.00016438,2]
[399309546,1766278247199,-500.0,0.00016438,2]
[399309547,1766278247210,-500.0,0.00016438,2]
[399309548,1766278247226,-500.0,0.00016438,2]
[399309549,1766278247236,-500.0,0.00016438,2]
[399309550,1766278247245,-500.0,0.00016438,2]
[399309551,1766278247255,-500.0,0.00016438,2]
[399309552,1766278247265,-500.0,0.00016438,2]
[399309553,1766278247275,-500.0,0.00016438,2]
[399309554,1766278247287,-500.0,0.00016438,2]
[399309555,1766278247298,-500.0,0.00016438,2]
[399309556,1766278247309,-500.0,0.00016438,2]
[399309557,1766278247319,-500.0,0.00016438,2]
[399309558,1766278247328,-500.0,0.00016438,2]
[399309559,1766278247339,-500.0,0.00016438,2]
[399309560,1766278247350,-500.0,0.00016438,2]
[399309561,1766278247359,-500.0,0.00016438,2]
[399309562,1766278247370,-500.0,0.00016438,2]
[399309563,1766278247381,-500.0,0.00016438,2]
[399309564,1766278247393,-233.02276152,0.00016438,2]
[399309565,1766278247404,-500.0,0.00016438,2]
[399309566,1766278247414,-500.0,0.00016438,2]
[399309567,1766278247430,-500.0,0.00016438,2]
[399309568,1766278247441,-500.0,0.00016438,2]
[399309569,1766278247453,-500.0,0.00016438,2]
[399309570,1766278247464,-500.0,0.00016438,2]
[399309571,1766278247474,-500.0,0.00016438,2]
[399309572,1766278247486,-500.0,0.00016438,2]
[399309573,1766278247498,-500.0,0.00016438,2]
[399309574,1766278247509,-500.0,0.00016438,2]
[399309575,1766278247521,-500.0,0.00016438,2]
[399309576,1766278247533,-500.0,0.00016438,2]
[399309577,1766278247544,-500.0,0.00016438,2]
[399309578,1766278247554,-500.0,0.00016438,2]
[399309579,1766278247568,-500.0,0.00016438,2]
[399309580,1766278247579,-500.0,0.00016438,2]
[399309581,1766278247589,-500.0,0.00016438,2]
[399309582,1766278247601,-500.0,0.00016438,2]
[399309583,1766278247612,-500.0,0.00016438,2]
[399309584,1766278247626,-500.0,0.00016438,2]
[399309585,1766278247639,-500.0,0.00016438,2]
[399309586,1766278247650,-500.0,0.00016438,2]
[399309587,1766278247663,-600.0,0.00016438,2]
[399309588,1766278247673,-551.75,0.00016438,2]
[399309589,1766278247683,-866.0,0.00016444,2]
[399309590,1766278247693,-150.0,0.00016455,2]
[399309591,1766278247703,-168.0,0.0001654,2]
[399309592,1766278247713,-150.0,0.00016562,2]
[399309593,1766278247723,-150.0,0.00016562,2]
[399309594,1766278247732,-866.0,0.00016577,2]
[399309595,1766278247742,-168.0,0.0001659,2]
[399309596,1766278247752,-866.0,0.00016603,2]
[399309597,1766278247762,-8900.08485746,0.0001666,2]
[399309598,1766278247771,-7044.88828449,0.0001666,2]
[399309599,1766278247780,-150.0,0.00016668,2]
[399309600,1766278247790,-163.63163225,0.00016697,2]
[399309601,1766278247800,-574.12855637,0.00016697,2]
[399309602,1766278247810,-151.0,0.00016697,2]
[399309603,1766278247819,-738.435282,0.00016697,2]
[399309604,1766278247832,-150.0,0.00016703,2]
[399309605,1766278247842,-168.0,0.0001671,2]
[399309606,1766278247852,-600.0,0.00016712,2]
[399309607,1766278247861,-168.0,0.00016739,2]
[399309608,1766278247871,-150.0,0.00016774,2]
[399309609,1766278247881,-846.45332019,0.0001683,2]
[399309610,1766278247890,-150.0,0.00016845,2]
[399309611,1766278247900,-200.0,0.00016863,2]
[399309612,1766278247910,-2000.0,0.00016864,2]
[399309613,1766278247920,-200.0,0.00016864,2]
[399309614,1766278247929,-200.0,0.00016864,2]
[399309615,1766278247939,-150.0,0.0001688,2]
[399309616,1766278247950,-168.0,0.00016887,2]
[399309617,1766278247960,-537.03290161,0.00016899,2]
[399309618,1766278247970,-560.93,0.00016899,2]
[399309619,1766278247979,-956.17,0.00016899,2]
[399309620,1766278247988,-500.0,0.00016899,2]
[399309621,1766278247998,-300.0,0.00016899,2]
[399309622,1766278248007,-300.0,0.00016899,2]
[399309623,1766278248016,-300.0,0.00016899,2]
[399309624,1766278248028,-10000.0,0.000169,2]
[399309625,1766278248037,-846.57109174,0.000169,2]
[399309626,1766278248047,-7044.88828449,0.000169,2]
[399309627,1766278248057,-616.35544401,0.000169,2]
[399309628,1766278248066,-808.6212373,0.000169,2]
[399309629,1766278248076,-923.97051826,0.000169,2]
[399309630,1766278248088,-4154.0,0.000169,2]
[399309631,1766278248098,-168.0,0.00016934,2]
[399309632,1766278248110,-500.0,0.0001697,2]
[399309633,1766278248122,-1000.0,0.0001697,2]
[399309634,1766278248133,-500.0,0.0001697,2]
[399309635,1766278248145,-1000.0,0.0001697,2]
[399309636,1766278248158,-500.0,0.0001697,2]
[399309637,1766278248168,-1000.0,0.0001697,2]
[399309638,1766278248179,-500.0,0.0001697,2]
[399309639,1766278248190,-1000.0,0.0001697,2]
[399309640,1766278248203,-500.0,0.0001697,2]
[399309641,1766278248215,-1302.14887411,0.0001697,2]
[399309642,1766278248226,-500.0,0.0001697,2]
[399309643,1766278248236,-191.38735328,0.00016973,2]
[399309644,1766278248246,-500.0,0.00016973,2]
[399309645,1766278248256,-501.0,0.00016973,2]
[399309646,1766278248267,-500.0,0.00016973,2]
[399309647,1766278248280,-500.0,0.00016973,2]
[399309648,1766278248290,-600.0,0.00016986,2]
[399309649,1766278248299,-150.0,0.00016986,2]
[399309650,1766278248309,-150.00000001,0.00016986,2]
[399309651,1766278248319,-7237.8967686,0.00016993,2]
[399309652,1766278248330,-3639.9451872,0.00016993,2]
[399309653,1766278248340,-1526.74563698,0.00016998,2]
[399309654,1766278248350,-300.0,0.00016998,2]
[399309655,1766278248359,-300.0,0.00016998,2]
[399309656,1766278248369,-300.0,0.00016998,2]
[399309657,1766278248380,-560.93,0.00016999,2]
[399309658,1766278248390,-560.93,0.00016999,2]
[399309659,1766278248400,-560.93,0.00016999,2]
[399309660,1766278248410,-560.93,0.00016999,2]
[399309661,1766278248430,-560.93,0.00016999,2]
[399309662,1766278248440,-560.93,0.00016999,2]
[399309663,1766278248450,-560.93,0.00016999,2]
[399309664,1766278248461,-560.93,0.00016999,2]
[399309665,1766278248471,-560.93,0.00016999,2]
[399309666,1766278248480,-560.93,0.00016999,2]
[399309667,1766278248490,-560.93,0.00016999,2]
[399309668,1766278248499,-560.93,0.00016999,2]
[399309669,1766278248509,-560.93,0.00016999,2]
[399309670,1766278248519,-560.93,0.00016999,2]
[399309671,1766278248528,-560.93,0.00016999,2]
[399309672,1766278248538,-560.93,0.00016999,2]
[399309673,1766278248548,-560.93,0.00016999,2]
[399309674,1766278248557,-560.93,0.00016999,2]
[399309675,1766278248567,-560.96701324,0.00016999,2]
[399309676,1766278248577,-956.17,0.00016999,2]
[399309677,1766278248587,-956.17,0.00016999,2]
[399309678,1766278248596,-956.17,0.00016999,2]
[399309679,1766278248606,-956.17,0.00016999,2]
[399309680,1766278248615,-956.17,0.00016999,2]
[399309681,1766278248625,-956.17,0.00016999,2]
[399309682,1766278248634,-956.17,0.00016999,2]
[399309683,1766278248644,-956.17,0.00016999,2]
[399309684,1766278248653,-956.17,0.00016999,2]
[399309685,1766278248663,-956.17,0.00016999,2]
[399309686,1766278248673,-956.17,0.00016999,2]
[399309687,1766278248691,-956.17,0.00016999,2]
[399309688,1766278248711,-956.17,0.00016999,2]
[399309689,1766278248730,-956.17,0.00016999,2]
[399309690,1766278248750,-956.17,0.00016999,2]
[399309691,1766278248772,-956.17,0.00016999,2]
[399309692,1766278248792,-956.17,0.00016999,2]
[399309693,1766278248808,-956.17,0.00016999,2]
[399309694,1766278248820,-956.22777372,0.00016999,2]
[399309695,1766278248830,-500.0,0.00016999,2]
[399309696,1766278248840,-500.0,0.00016999,2]
[399309697,1766278248850,-500.0,0.00016999,2]
[399309698,1766278248861,-500.0,0.00016999,2]
[399309699,1766278248872,-500.0,0.00016999,2]
[399309700,1766278248883,-500.0,0.00016999,2]
[399309701,1766278248893,-500.0,0.00016999,2]
[399309702,1766278248903,-500.0,0.00016999,2]
[399309703,1766278248913,-500.0,0.00016999,2]
[399309704,1766278248924,-500.0,0.00016999,2]
[399309705,1766278248934,-360.07839417,0.00016999,2]
[399309706,1766278248943,-1194.59810132,0.00016999,5]
[399309707,1766278248954,-300.0,0.00016999,2]
[399309708,1766278248965,-300.0,0.00016999,2]
[399309709,1766278248976,-300.0,0.00016999,2]
[399309710,1766278248988,-174685.10862312,0.00017,2]
[399309711,1766278248999,-7032.30254233,0.00017,2]
[399309712,1766278249009,-1781417.99308355,0.00017,2]
[399309713,1766278249020,-90927.95209075,0.00017,2]
[399309714,1766278249043,-114982.39257341,0.00017,2]
[399309715,1766278249130,-400.23705092,0.00017,2]
[399309716,1766278249145,-440.415,0.00017,2]
[399309717,1766278249156,-11800.9244031,0.00017,2]
[399309718,1766278249169,-6961.11839122,0.00017,2]
[399309719,1766278249181,-5794.5814002,0.00017,2]
[399309720,1766278249194,-2027.53578998,0.00017,2]
[399309721,1766278249208,-309.95650026,0.00017,2]
[399309722,1766278341593,4878.17,0.000226,120]
[399309734,1766278513551,188.0,0.00021899,120]
[399309775,1766278809000,162.0,0.00021874,120]
[399309821,1766279106000,163.0,0.00021853,120]
[399309909,1766279432025,-908.35313904,0.000131,2]
[399309910,1766279432035,-76.8599901,0.00013189,2]
[399309911,1766279432137,-1123.1400099,0.00013189,2]
[399309912,1766279432147,-300.0,0.00013189,2]
[399309913,1766279432156,-300.0,0.00013189,2]
[399309914,1766279432166,-1200.0,0.00013189,2]
[399309915,1766279432175,-300.0,0.00013189,2]
[399309916,1766279432184,-195.0,0.0001319,2]
[399309917,1766279432193,-300.0,0.0001319,2]
[399309918,1766279432203,-930.56201156,0.00013191,3]
[399309919,1766279432248,-4069.43798844,0.00013191,3]
[399309920,1766279432257,-7988.99211726,0.00013192,2]
[399309921,1766279432266,-3188.41234209,0.00013192,2]
[399309922,1766279432276,-242.77116416,0.00013192,2]
[399309923,1766279432285,-152.46,0.00013192,2]
[399309924,1766279432294,-151.46,0.00013192,2]
[399309925,1766279432303,-150.63,0.00013192,2]
[399309926,1766279432313,-16500.9241613,0.00013192,2]
[399309927,1766279432323,-2973.39073889,0.00013192,2]
[399309929,1766279438029,-534.63112642,0.00013191,2]
[399309930,1766279438038,-258.71609435,0.00013191,2]
[399309931,1766279438052,-236.05108737,0.00013191,2]
[399309932,1766279438061,-259.09272095,0.00013191,2]
[399309933,1766279438141,-240.90727905,0.00013191,2]
[399309934,1766279438150,-500.0,0.00013191,2]
[399309935,1766279438159,-393.24603373,0.00013191,2]
[399309936,1766279438168,-2943.42543014,0.00013192,2]
[399309937,1766279438179,-11013.27447207,0.00013192,2]
[399309938,1766279438199,-1859.80493092,0.00013192,2]
[399309939,1766279438257,-869.88367772,0.00013192,2]
[399309943,1766279440159,-1727.05004987,0.00013192,2]
[399309944,1766279440383,-962112.24653909,0.00013192,2]
[399309945,1766279440392,-157.945546,0.000132,3]
[399309946,1766279440401,-150.0,0.00013274,2]
[399309947,1766279440411,-150.0,0.00013283,2]
[399309948,1766279440420,-151.0,0.00013284,2]
[399309949,1766279440428,-151.0,0.00013284,2]
[399309950,1766279440437,-151.0,0.00013284,2]
[399309951,1766279440446,-151.0,0.00013284,2]
[399309952,1766279440455,-151.0,0.00013284,2]
[399309953,1766279440463,-151.0,0.00013284,2]
[399309954,1766279440472,-151.0,0.00013284,2]
[399309955,1766279440481,-151.0,0.00013284,2]
[399309956,1766279440490,-151.0,0.00013284,2]
[399309957,1766279440499,-294.08413957,0.00013284,2]
[399309958,1766279440508,-200.0,0.00013284,2]
[399309959,1766279440517,-200.0,0.00013284,2]
[399309960,1766279440525,-233.44706167,0.00013284,2]
[399309961,1766279440534,-882.147,0.00013291,2]
[399309962,1766279440544,-1000.0,0.00013292,2]
[399309963,1766279440554,-1194.34,0.00013292,2]
[399309964,1766279440563,-3847.09,0.00013292,2]
[399309965,1766279440572,-4533.35,0.00013292,2]
[399309966,1766279440580,-63186.93,0.00013292,2]
[399309967,1766279440589,-1175.55,0.00013292,2]
[399309968,1766279440599,-7988.9921172,0.00013604,2]
[399309969,1766279440608,-3188.41234209,0.00013604,2]
[399309970,1766279440617,-908.35313898,0.00013643,2]
[399309971,1766279440626,-500.0,0.00013698,2]
[399309972,1766279440635,-500.0,0.00013698,2]
[399309973,1766279440644,-500.0,0.00013698,2]
[399309974,1766279440653,-500.0,0.00013698,2]
[399309975,1766279440662,-500.0,0.00013698,2]
[399309976,1766279440671,-500.0,0.00013698,2]
[399309977,1766279440680,-511.45159126,0.00013698,2]
[399309978,1766279440688,-500.0,0.00013698,2]
[399309979,1766279440697,-500.0,0.00013698,2]
[399309980,1766279440706,-500.0,0.00013698,2]
[399309981,1766279440714,-500.0,0.00013698,2]
[399309982,1766279440723,-500.0,0.00013698,2]
[399309983,1766279440732,-560.93,0.00013698,2]
[399309984,1766279440741,-560.93,0.00013698,2]
[399309985,1766279440750,-560.93,0.00013698,2]
[399309986,1766279440762,-560.93,0.00013698,2]
[399309987,1766279440771,-500.0,0.00013698,2]
[399309988,1766279440780,-500.0,0.00013698,2]
[399309989,1766279440789,-500.0,0.00013698,2]
[399309990,1766279440798,-244.59651847,0.00013698,2]
[399309991,1766279440808,-500.0,0.00013698,2]
[399309992,1766279440818,-557.76,0.00013698,2]
[399309993,1766279440827,-557.76,0.00013698,2]
[399309994,1766279440838,-557.76,0.00013698,2]
[399309995,1766279440847,-557.76,0.00013698,2]
[399309996,1766279440857,-1000.0,0.00013699,2]
[399309997,1766279440866,-191.44340005,0.00013699,2]
[399309998,1766279440876,-500.0,0.00013699,2]
[399309999,1766279440886,-500.0,0.00013699,2]
[399310000,1766279440895,-500.0,0.00013699,2]
[399310003,1766279441162,-500.0,0.00013699,2]
[399310004,1766279441178,-540.24345851,0.00013699,2]
[399310005,1766279441187,-210.16565116,0.00013699,2]
[399310006,1766279441197,-500.0,0.00013699,2]
[399310007,1766279441206,-14691.42,0.000137,2]
[399310008,1766279441215,-14691.42,0.000137,2]
[399310009,1766279441225,-1765.84,0.000137,2]
[399310010,1766279441235,-1765.84,0.000137,2]
[399310011,1766279441245,-1765.84,0.000137,2]
[399310012,1766279441254,-1765.84,0.000137,2]
[399310013,1766279441263,-1765.84,0.000137,2]
[399310014,1766279441276,-500.0,0.00013873,2]
[399310015,1766279441286,-500.0,0.00013873,2]
[399310016,1766279441295,-500.0,0.00013873,2]
[399310017,1766279441304,-3240.0,0.00014014,2]
[399310018,1766279441315,-7988.9921172,0.00014016,2]
[399310019,1766279441325,-3188.41234209,0.00014016,2]
[399310020,1766279441334,-908.35313898,0.00014186,2]
[399310021,1766279441343,-947.0,0.00014226,2]
[399310022,1766279441353,-765.0,0.00014373,2]
[399310023,1766279441362,-255.0,0.00014399,2]
[399310024,1766279441371,-500.0,0.00014421,2]
[399310025,1766279441381,-7988.9921172,0.00014428,2]
[399310026,1766279441390,-3188.41234209,0.00014428,2]
[399310027,1766279441399,-1680.0,0.00014461,2]
[399310028,1766279441408,-420.0,0.00014461,2]
[399310029,1766279441417,-420.0,0.00014461,2]
[399310030,1766279441427,-709.0,0.00014505,2]
[399310031,1766279441437,-300.0,0.00014508,2]
[399310032,1766279441446,-300.0,0.00014508,2]
[399310033,1766279441455,-2500.0,0.00014508,2]
[399310034,1766279441465,-2500.0,0.00014508,2]
[399310035,1766279441474,-2500.0,0.00014508,2]
[399310036,1766279441483,-2500.0,0.00014508,2]
[399310037,1766279441493,-300.0,0.00014508,2]
[399310038,1766279441502,-300.0,0.00014508,2]
[399310039,1766279441511,-300.0,0.00014508,2]
[399310040,1766279441520,-2500.0,0.00014508,2]
[399310041,1766279441530,-195.0,0.00014508,2]
[399310042,1766279441539,-5000.0,0.00014508,3]
[399310043,1766279441548,-1408.54659257,0.00014508,3]
[399310044,1766279441557,-1680.0,0.00014508,2]
[399310045,1766279441566,-228.067,0.00014562,2]
[399310046,1766279441576,-163.308,0.00014562,2]
[399310047,1766279441585,-2791.006,0.00014562,2]
[399310048,1766279441594,-612.0,0.00014562,2]
[399310049,1766279441604,-1608.0,0.00014562,2]
[399310050,1766279441613,-1326.0,0.00014562,2]
[399310051,1766279441622,-518.0,0.00014562,2]
[399310052,1766279441631,-2428.0,0.00014562,2]
[399310053,1766279441640,-564.0,0.00014562,2]
[399310054,1766279441650,-1197.0,0.00014562,2]
[399310055,1766279441659,-200.0,0.00014686,2]
[399310056,1766279441669,-908.35313898,0.00014729,2]
[399310057,1766279441678,-277.0,0.00014754,2]
[399310058,1766279441688,-1263.0,0.00014784,2]
[399310059,1766279441698,-7988.9921172,0.0001484,2]
[399310060,1766279441707,-3188.41234209,0.0001484,2]
[399310061,1766279441717,-7988.9921172,0.00015252,2]
[399310062,1766279441727,-3188.41234209,0.00015252,2]
[399310063,1766279441735,-908.35313898,0.00015271,2]
[399310064,1766279441745,-150.0,0.00015288,2]
[399310065,1766279441755,-150.0,0.00015288,2]
[399310066,1766279441765,-150.0,0.00015394,2]
[399310067,1766279441774,-150.0,0.00015429,2]
[399310068,1766279441783,-150.0,0.000155,2]
[399310069,1766279441792,-150.0,0.00015571,2]
[399310070,1766279441804,-150.0,0.00015606,2]